Cogmind - Beta 15 @@@ ROGUE MODE // 2025.07.23 @ 03:59:02 Player: LameThyst Result: Destroyed by B-75 Beast with Magnetic Acceleration Cannon Performance ------------- Evolutions (4) 2000 Regions Visited (10) 2000 Robots Destroyed (80) 400 Value Destroyed (2903) 2903 Prototype IDs (13) 260 Alien Tech Used (0) 0 Bonus (-218) -218 TOTAL SCORE: 7345 Bonus ------- Follower Combat Kills 186 Friendly Fire -404 Cogmind --------- Core Integrity 0/850 Matter 177/300 Energy 31/100 System Corruption 2% Temperature Cool (0) Movement Core (50) Location -6/Extension Parts ------- > --- POWER (1) -------- (None) > --- PROPULSION (5) --- (None) > --- UTILITY (6) ------ Advanced Heat Sink Hacking Suite > --- WEAPON (3) ------- (None) > --- INVENTORY (5) ---- Compact Matter Pod (150) Seismic Detector Arc Projector Gauss Rifle Flak Gun Peak State ------------ > --- POWER ------------ Micro Nuclear Core > --- PROPULSION ------- Medium Treads Improved Medium Treads Improved Medium Treads Improved Medium Treads Improved Medium Treads > --- UTILITY ---------- Huge Storage Unit Advanced Sensor Array Seismic Detector Gun Armor Hacking Suite Hacking Drone Bay > --- WEAPON ----------- Precision Assault Rifle Precision Assault Rifle Powered Hammer > --- INVENTORY -------- Light Treads Light Treads Compact Matter Pod Microactuators Transmission Jammer EM Shield Arc Projector Gatling Laser Gauss Cannon Subdweller Shrapnel Launcher [Rating: 73] Favorites ----------- Power Micro Nuclear Core Engine Light Ion Engine Power Core Micro Nuclear Core Propulsion Light Treads Treads Light Treads Leg Aluminum Leg Wheel Subdweller Monowheel Utility Gun Armor Device Seismic Detector Storage Small Storage Unit Processor Improved Signal Interpreter Hackware Hacking Suite Protection Gun Armor Weapon Precision Assault Rifle Energy Gun Lightning Gun Energy Cannon Subdweller Beam Cannon Ballistic Gun Precision Assault Rifle Ballistic Cannon Gauss Cannon Launcher Subdweller Shrapnel Launcher Impact Weapon Powered Hammer Slashing Weapon Makeshift Axe Build | -11 -10 -10 -8 -7 -7 -7 -7 -6 -6 -6 ------- Run | Yrd Mat Sub Mat Fac Low Low Zio Pro Fac Ext Slots Evolved 8 | . . . 4 2 . . . . 2 . Power . | . . . . . . . . . . . Propulsion 3 | . . . 1 1 . . . . 1 . Utility 4 | . . . 2 1 . . . . 1 . Weapon 1 | . . . 1 . . . . . . . Parts Attached 101 | 8 1 16 19 14 . 3 1 3 15 21 Power 10 | 1 . 2 2 1 . . . . 1 3 Engine 7 | 1 . 1 2 . . . . . . 3 Core 3 | . . 1 . 1 . . . . 1 . Reactor . | . . . . . . . . . . . Propulsion 29 | 2 . 6 6 3 . 1 . 1 6 4 Treads 21 | 2 . . 5 3 . 1 . 1 6 3 Leg 2 | . . 1 . . . . . . . 1 Wheel 6 | . . 5 1 . . . . . . . Hover . | . . . . . . . . . . . Flight . | . . . . . . . . . . . Utility 27 | 2 1 2 1 6 . 1 1 2 5 6 Device 18 | 1 1 1 1 6 . . . 2 2 4 Storage 2 | 1 . . . . . . . . 1 . Processor 2 | . . . . . . 1 1 . . . Hackware 1 | . . . . . . . . . 1 . Protection 4 | . . 1 . . . . . . 1 2 Artifact . | . . . . . . . . . . . Weapon 35 | 3 . 6 10 4 . 1 . . 3 8 Energy Gun 9 | 1 . . 2 . . 1 . . 1 4 Energy Cannon 3 | . . 1 . 2 . . . . . . Ballistic Gun 16 | 2 . 2 7 1 . . . . 1 3 Ballistic Cannon 2 | . . . 1 . . . . . 1 . Launcher 2 | . . 2 . . . . . . . . Special Weapon . | . . . . . . . . . . . Impact Weapon 1 | . . . . 1 . . . . . . Slashing Weapon 2 | . . 1 . . . . . . . 1 Piercing Weapon . | . . . . . . . . . . . Special Melee Weapon . | . . . . . . . . . . . Unidentified Prototypes 2 | . . . 1 . . . . . 1 . Parts Lost 47 | . . 7 2 1 . 1 3 3 2 28 Power 4 | . . . 1 . . . . . 1 2 Propulsion 19 | . . 3 1 . . . 2 2 1 10 Utility 10 | . . . . . . 1 1 1 . 7 Weapon 14 | . . 4 . 1 . . . . . 9 Highest Loss Streak 14 | . . 3 2 1 . 1 3 2 1 14 To Critical Strikes . | . . . . . . . . . . . Average Backups 9 | 3 6 7 7 7 8 7 8 7 10 19 Power 1 | . 1 1 . 1 1 1 1 1 . 1 Propulsion 1 | 1 2 1 1 1 2 2 1 . 1 3 Utility 3 | . 1 2 1 1 2 1 2 3 4 9 Weapon 3 | 1 2 2 3 3 3 3 3 3 4 6 Tool/Special . | . . . . . . . . . . . Unused Backups 13 | 1 . 3 3 1 . . . . . 5 Power 5 | . . . 2 1 . . . . . 2 Propulsion 2 | 1 . 1 . . . . . . . . Utility 3 | . . . . . . . . . . 3 Weapon 3 | . . 2 1 . . . . . . . Tool/Special . | . . . . . . . . . . . Average Slot Usage (%) 94 | . 100 99 93 98 100 99 96 77 90 88 Engine 3 | . 14 10 4 5 . . . . . 3 Core 4 | . . 2 3 1 7 7 7 7 5 2 Treads 22 | . 28 13 11 30 30 30 27 14 23 27 Wheel 2 | . . 10 9 . . . . . . . Device 15 | . 14 6 17 21 23 18 15 15 17 10 Storage 7 | . 14 12 9 7 7 7 7 7 6 5 Hackware 1 | . . . . . . . . . 6 6 Protection 7 | . . 6 9 7 7 7 7 7 8 12 Energy Gun 2 | . 14 2 4 2 . 1 . . 1 4 Energy Cannon 1 | . . 3 2 1 . 1 . . . . Ballistic Gun 12 | . 14 16 14 14 15 13 15 15 10 5 Impact Weapon 3 | . . . . . 7 5 7 7 5 3 Slashing Weapon 2 | . . 10 4 2 . . . . . 2 Peak Build Rating 73 | 7 9 23 36 44 44 44 45 41 73 72 Average Rating 41 | 5 8 17 33 39 44 43 43 38 60 61 On Entrance 31 | . 7 9 23 34 44 44 44 40 41 65 Naked Turns . | . . . . . . . . . . . Heaviest Build 117 | 13 13 26 34 34 29 33 28 29 113 117 Greatest Support 148 | 40 40 40 60 88 88 88 88 48 148 143 Greatest Overweight (x) 36 | 1 . 2 1 . . . . 1 . 36 Average Overweight (x) . | . . . . . . . . . . . Largest Inventory Capacity 25 | 8 8 8 8 8 8 8 8 8 25 25 Average Capacity 11 | 7 8 8 8 8 8 8 8 8 17 23 Most Carried 25 | 6 7 8 8 8 8 8 8 8 17 25 Average Carried 9 | 3 6 7 7 7 8 7 8 7 10 19 Final Capacity 25 | 8 8 8 8 8 8 8 8 8 25 5 Final Carried 17 | 6 7 8 8 8 8 8 8 7 17 5 Class Distribution -------------------- 51% | Scavenger-Mutant 28% | Mutant 7% | Scavenger-Skirmisher 6% | Scavenger-Gunner 3% | Commander-Mutant Dominant Class ---------------- Mutant | -10/Materials Mutant | -10/Subcaves Scavenger-Mutant | -8/Materials Scavenger-Skirmisher | -7/Factory Scavenger-Mutant | -7/Lower Caves Scavenger-Mutant | -7/Lower Caves Scavenger-Mutant | -7/Zion Scavenger-Mutant | -6/Proximity Caves Scavenger-Mutant | -6/Factory Scavenger-Mutant | -6/Extension Resources | -11 -10 -10 -8 -7 -7 -7 -7 -6 -6 -6 ----------- Run | Yrd Mat Sub Mat Fac Low Low Zio Pro Fac Ext Matter Collected 3271 | 295 10 353 610 461 62 150 46 163 333 788 Remotely . | . . . . . . . . . . . Salvage Created 2985 | 115 . 265 661 505 . 75 46 185 337 796 Parts 167 | 7 . 15 42 33 . 4 1 8 16 41 Haulers Intercepted . | . . . . . . . . . . . Recyclers Shooed . | . . . . . . . . . . . Parts Field Recycled . | . . . . . . . . . . . Retrieved Matter . | . . . . . . . . . . . Parts Self-Destructed 21 | . . 10 . . . 3 . 8 . . Prevented 6 | . . . . . 1 1 . 4 . . Kills | -11 -10 -10 -8 -7 -7 -7 -7 -6 -6 -6 ------- Run | Yrd Mat Sub Mat Fac Low Low Zio Pro Fac Ext Combat Hostiles Destroyed 66 | . . 10 15 9 . 1 1 5 12 13 Melee 4 | . . . . . . . . . 1 3 Guns 33 | . . 5 11 5 . . 1 5 4 2 Cannons 9 | . . . 4 3 . 1 . . 1 . AOE 12 | . . 5 . . . . . . 4 3 Classes Destroyed 12 | 2 . 3 5 1 . . . . . 1 Builder 5 | . . . 1 . . . . . . 4 Tunneler 1 | 1 . . . . . . . . . . Recycler 2 | 1 . . 1 . . . . . . . Watcher 3 | . . . 1 1 . . . . 1 . Swarmer 20 | . . 1 5 . . . . 3 8 3 Grunt 17 | . . 3 4 4 . . . 1 . 5 Brawler 1 | . . . 1 . . . . . . . Duelist 1 | . . . 1 . . . . . . . Sentry 14 | . . . 4 2 . 1 . 1 2 4 Hunter 1 | . . . . . . . . . . 1 Programmer 5 | . . . . 3 . . . . 2 . Subdweller 6 | . . 6 . . . . . . . . Thug 2 | . . . . . . . . . . 2 Savage 1 | . . . . . . . . . . 1 Butcher 1 | . . . . . . . 1 . . . Best Kill Streak 7 | 2 . 2 7 4 . 1 1 3 4 4 Combat Bots Only 6 | . . 2 6 4 . 1 1 3 4 3 Max Kills in Single Turn 5 | 1 . 1 1 1 . 1 1 1 4 5 Gunslinging . | . . . . . . . . . . . Exploded 4 | . . 1 . . . . . . 4 3 Melee 1 | . . . . . . . . . 1 1 Uniques/NPCs Destroyed . | . . . . . . . . . . . Combat | -11 -10 -10 -8 -7 -7 -7 -7 -6 -6 -6 -------- Run | Yrd Mat Sub Mat Fac Low Low Zio Pro Fac Ext Hostile Shots Fired 728 | . . 69 51 84 . 27 7 66 90 334 Missed 217 | . . 19 16 17 . 10 3 29 36 87 Hits 511 | . . 50 35 67 . 17 4 37 54 247 Melee 5 | . . . 1 . . . 4 . . . Projectile 506 | . . 50 34 67 . 17 . 37 54 247 AOE 4 | . . 4 . . . . . . . . Critical Strikes 7 | . . 1 . 1 . . 1 . . 4 Part Disruptions 1 | . . . . . . . . . 1 . Damage Taken 7585 | . . 1137 447 689 . 137 159 476 612 3928 Core 1294 | . . 240 43 61 . . . 69 63 818 Absorbed by Shields . | . . . . . . . . . . . Regen/Repaired (Parts) 34 | . . . 34 . . . . . . . Core Remaining (%) 69 | 100 . 4 92 . . . . 81 . . Volleys Fired 174 | 5 . 39 32 21 . 8 5 14 15 35 Largest 3 | 2 . 3 3 3 . 3 2 2 3 3 Hottest 218 | 70 . 90 165 121 . 148 56 56 138 218 Shots Fired 397 | 10 . 65 85 62 2 14 11 28 31 89 Gun 317 | 10 . 48 57 56 2 6 11 28 26 73 Cannon 54 | . . 3 28 6 . 8 . . 4 5 Launcher 26 | . . 14 . . . . . . 1 11 Special . | . . . . . . . . . . . Kinetic 256 | 5 . 41 52 42 2 3 11 28 29 43 Thermal 102 | 5 . 16 19 6 . 8 . . 2 46 Explosive 8 | . . 8 . . . . . . . . Electromagnetic 31 | . . . 14 14 . 3 . . . . Robot Hit Streak 20 | 3 . 9 9 20 2 4 7 14 12 20 Robot Miss Streak 7 | 1 . 3 7 1 . 1 1 1 2 3 Penetration Max 1 | . . . . . . . . . . 1 Secondary Targets 7 | . . . 4 2 . . . . 1 . Max Gunslinging Chain 1 | . . . 1 1 . . . . 1 . Shots Hit Robots 311 | 6 . 48 48 53 1 6 11 23 34 81 Core Hits 135 | 3 . 22 26 22 1 3 3 10 13 32 Critical Kills 4 | . . 1 . 1 . . . . 1 1 Critical Parts Destroyed 12 | . . . . 2 . . . 2 4 4 Critical Strikes 22 | . . 2 2 4 . . . 2 5 7 Burn 2 | . . 1 . . . . . . . 1 Destroy 8 | . . 1 . 3 . . . 2 . 2 Blast 1 | . . . . . . . . . . 1 Corrupt 3 | . . . 2 1 . . . . . . Smash 8 | . . . . . . . . . 5 3 Melee Attacks 79 | . . 16 1 13 . 5 2 . 19 23 Impact 42 | . . . . . . 5 2 . 19 16 Slashing 37 | . . 16 1 13 . . . . . 7 Piercing . | . . . . . . . . . . . Sneak Attacks . | . . . . . . . . . . . Combat Hostiles . | . . . . . . . . . . . Follow-up Attacks 2 | . . . . . . . . . . 2 Damage Inflicted 9210 | 72 . 1244 1032 1156 22 113 244 455 1590 3282 Guns 4618 | 72 . 435 693 959 22 61 145 455 361 1415 Cannons 745 | . . 30 339 158 . 52 . . 82 84 Explosions 2514 | . . 779 . . . . . . 623 1112 Melee 1332 | . . . . 39 . . 99 . 524 670 Ramming 1 | . . . . . . . . . . 1 Kinetic 4916 | 11 . 713 617 734 22 39 145 455 593 1587 Thermal 2107 | 61 . 145 194 158 . 52 . . 473 1024 Explosive 386 | . . 386 . . . . . . . . Electromagnetic 468 | . . . 221 225 . 22 . . . . Impact 1082 | . . . . . . . 99 . 524 459 Slashing 250 | . . . . 39 . . . . . 211 Piercing . | . . . . . . . . . . . Highest Corruption 2 | . . . . 1 1 1 1 1 1 2 Average Corruption 1 | . . . . 1 1 1 1 1 1 1 Corruption Purged . | . . . . . . . . . . . Corruption Blocked . | . . . . . . . . . . . Effects 44 | . . . . 1 6 9 3 6 12 7 Message Errors 11 | . . . . 1 1 2 . 2 3 2 Matter Fused 10 | . . . . . 1 2 1 1 2 3 Heat Flow Errors 3 | . . . . . . 1 . . 2 . Energy Discharges 5 | . . . . . 1 1 1 1 1 . Data Loss (minor) 7 | . . . . . . 2 . 2 2 1 Data Loss (major) 3 | . . . . . . 1 . . 1 1 Misfires 4 | . . . . . 2 . 1 . 1 . Alerts 1 | . . . . . 1 . . . . . Overload Shots . | . . . . . . . . . . . Overflow Damage 611 | . . . . . . . . . 420 191 Projectiles . | . . . . . . . . . . . Explosions 170 | . . . . . . . . . 141 29 Melee 441 | . . . . . . . . . 279 162 Knockbacks 6 | . . . . . . . 2 . 2 2 Impact 6 | . . . . . . . 2 . 2 2 Kinetic . | . . . . . . . . . . . Secondary . | . . . . . . . . . . . Self-Inflicted Damage 264 | . . 71 . . . . . . . 193 Shots 9 | . . 5 . . . . . . . 4 Rammed 1 | . . . . . . . . . . 1 Targets Rammed 1 | . . . . . . . . . . 1 Kicked . | . . . . . . . . . . . Crushed . | . . . . . . . . . . . Highest Temperature 614 | 36 . 18 172 33 . 201 . 9 243 614 Average Temperature 100 | 16 . 8 58 10 . 93 . 9 84 195 Received Heat Transfer 1605 | . . 294 162 222 . 48 . 141 72 666 Effects 15 | . . . . . . . . . . 15 Shutdowns 2 | . . . . . . . . . . 2 Interference 8 | . . . . . . . . . . 8 Matter Decay 1 | . . . . . . . . . . 1 Short Circuit 1 | . . . . . . . . . . 1 Damage (minor) 2 | . . . . . . . . . . 2 Damage (core) 1 | . . . . . . . . . . 1 Siege Activations . | . . . . . . . . . . . Martial Activations . | . . . . . . . . . . . Shielding Activations . | . . . . . . . . . . . Robots Disrupted . | . . . . . . . . . . . Combat Hostiles . | . . . . . . . . . . . Robots Corrupted 7 | . . . . 1 . . . . 2 4 Combat Hostiles 7 | . . . . 1 . . . . 2 4 Parts Fried 3 | . . . . 1 . . . . . 2 Impact Corruptions 18 | . . . . . . . . . 13 5 Robots Melted 1 | . . . . . . . . . . 1 Combat Hostiles 1 | . . . . . . . . . . 1 Parts Melted 5 | 1 . . . . . . . . . 4 Heat Transferred 3452 | 185 . 444 259 185 . 74 . . 250 2055 Parts Sabotaged . | . . . . . . . . . . . Parts Stolen . | . . . . . . . . . . . Parts Stripped . | . . . . . . . . . . . Power Chain Reactions . | . . . . . . . . . . . Alert | -11 -10 -10 -8 -7 -7 -7 -7 -6 -6 -6 ------- Run | Yrd Mat Sub Mat Fac Low Low Zio Pro Fac Ext Maximum Alert Level 1 | . . . 1 . . . . . 1 1 Low Security (%) 91 | 100 100 . 66 100 . . . . 99 88 Level 1 8 | . . . 33 . . . . . . 11 Level 2 . | . . . . . . . . . . . Level 3 . | . . . . . . . . . . . Level 4 . | . . . . . . . . . . . Level 5 . | . . . . . . . . . . . High Security . | . . . . . . . . . . . Max Security . | . . . . . . . . . . . Peak Influence 292 | 5 . . 292 92 . . . . 205 253 Initial 92 | . . . . 92 . . . . . . Average 47 | . . . 107 37 . . . . 17 70 Influence Increases 2161 | 10 . 100 494 297 . 20 . 155 397 688 Destroy 0b10 Robot/C 1280 | . . 80 300 180 . 20 . 100 240 360 Destroy 0b10 Robot/NC 55 | 10 . . 15 5 . . . . 5 20 Destroy Leader 256 | . . 20 82 62 . . . 10 42 40 Allied During Kill 135 | . . . . . . . . . . 135 Successful Hack 83 | . . . 23 36 . . . . . 24 Disable Machine 120 | . . . 15 . . . . . 75 30 Destroy Structure 127 | . . . 14 14 . . . . 35 64 Lose Combat Pursuer 105 | . . . 45 . . . . 45 . 15 Influence Decreases 2161 | 10 . 100 290 483 18 20 . 155 397 688 Entered New Map 120 | . . . . 112 8 . . . . . Time Decay 1456 | 10 . 100 280 334 10 20 . 145 247 310 Lost Part 288 | . . . 10 10 . . . 10 . 258 Lost Ally 120 | . . . . . . . . . . 120 Purge Threat 177 | . . . . 27 . . . . 150 . Squads Dispatched 9 | . 1 . . 3 . . . . 2 3 Investigation 1 | . . . . . . . . . . 1 Extermination 4 | . . . . 2 . . . . 2 . Reinforcement 4 | . 1 . . 1 . . . . . 2 Assault . | . . . . . . . . . . . Garrison . | . . . . . . . . . . . Intercept . | . . . . . . . . . . . Searches Triggered . | . . . . . . . . . . . Construction Impeded 1 | . . . . . . . . . . 1 Haulers Reinforced . | . . . . . . . . . . . Active Scanning Responses . | . . . . . . . . . . . Cargo Convoy Interrupts . | . . . . . . . . . . . Stealth | -11 -10 -10 -8 -7 -7 -7 -7 -6 -6 -6 --------- Run | Yrd Mat Sub Mat Fac Low Low Zio Pro Fac Ext Distress Signals 3 | . . . 2 . . . . . . 1 Communications Jammed . | . . . . . . . . . . . Distress Signals . | . . . . . . . . . . . Times Spotted 102 | . 2 13 27 11 . 1 2 7 16 23 Peak Tracking Total 8 | . 1 3 8 4 . 1 2 3 4 5 Tactical Retreats 6 | . . . 2 . . . 1 2 . 1 Traps | -11 -10 -10 -8 -7 -7 -7 -7 -6 -6 -6 ------- Run | Yrd Mat Sub Mat Fac Low Low Zio Pro Fac Ext Traps Triggered 2 | . . 1 . . . . . . . 1 Indirectly . | . . . . . . . . . . . Trap Hack Attempts . | . . . . . . . . . . . Triggered . | . . . . . . . . . . . Disarmed . | . . . . . . . . . . . Reprogrammed . | . . . . . . . . . . . Reused . | . . . . . . . . . . . Traps Extracted . | . . . . . . . . . . . Installed 5 | . . . . . . . . 5 . . Triggered . | . . . . . . . . . . . Machines | -11 -10 -10 -8 -7 -7 -7 -7 -6 -6 -6 ---------- Run | Yrd Mat Sub Mat Fac Low Low Zio Pro Fac Ext Machines Disabled 9 | . . 1 1 . . . . . 5 2 Max in Single Turn 5 | . . 1 1 . . . . . 5 1 Garrison Access 1 | . . . . . . . . . 1 . Machines Repaired . | . . . . . . . . . . . Machines Dismantled . | . . . . . . . . . . . Machines Sabotaged . | . . . . . . . . . . . Overloaded Fab Kills . | . . . . . . . . . . . Hacking | -11 -10 -10 -8 -7 -7 -7 -7 -6 -6 -6 --------- Run | Yrd Mat Sub Mat Fac Low Low Zio Pro Fac Ext Machines Accessed 23 | . . 1 7 6 . . . . 2 7 Terminals 16 | . . . 6 2 . . . . 1 7 Fabricators 1 | . . . . 1 . . . . . . Repair Stations 2 | . . . 1 1 . . . . . . Recycling Units 2 | . . . . 2 . . . . . . Scanalyzers . | . . . . . . . . . . . Garrison Access 1 | . . . . . . . . . 1 . Total Hacks 60 | . . 1 28 14 . . . . 4 13 Successful 31 | . . 1 14 4 . . . . 2 10 Failed 29 | . . . 14 10 . . . . 2 3 Catastrophic 7 | . . . 2 4 . . . . 1 . Database Lockouts . | . . . . . . . . . . . Manual 42 | . . . 21 13 . . . . . 8 Terminals 45 | . . . 24 6 . . . . 2 13 Fabricators 2 | . . . . 2 . . . . . . Repair Stations 5 | . . . 4 1 . . . . . . Recycling Units 5 | . . . . 5 . . . . . . Scanalyzers . | . . . . . . . . . . . Garrison Access 2 | . . . . . . . . . 2 . Terminal Hacks 9 | . . 1 2 1 . . . . 1 4 Record 1 | . . . . . . . . . . 1 Robot Analysis 1 | . . . 1 . . . . . . . Open Door 3 | . . . . . . . . . . 3 Branch Access Points 1 | . . . 1 . . . . . . . Unreport Threat 2 | . . . . 1 . . . . 1 . Proto ID Catalog 1 | . . 1 . . . . . . . . Fabricator Hacks . | . . . . . . . . . . . Repair Station Hacks 4 | . . . 4 . . . . . . . Scan Component 2 | . . . 2 . . . . . . . Repair 2 | . . . 2 . . . . . . . Recycling Unit Hacks . | . . . . . . . . . . . Scanalyzer . | . . . . . . . . . . . Garrison Access Hacks 1 | . . . . . . . . . 1 . Seal Access 1 | . . . . . . . . . 1 . Unauthorized Hacks 17 | . . . 8 3 . . . . . 6 Terminals 15 | . . . 8 1 . . . . . 6 Botnet 7 | . . . 3 1 . . . . . 3 Skim 8 | . . . 5 . . . . . . 3 Fabricators 1 | . . . . 1 . . . . . . Fabnet 1 | . . . . 1 . . . . . . Repair Stations . | . . . . . . . . . . . Recycling Units 1 | . . . . 1 . . . . . . Recyclers 1 | . . . . 1 . . . . . . Scanalyzers . | . . . . . . . . . . . Garrison Access . | . . . . . . . . . . . Data Cores Recovered . | . . . . . . . . . . . Used . | . . . . . . . . . . . Hacking Detections 16 | . . . 5 6 . . . . 1 4 Full Trace Events 1 | . . . . . . . . . . 1 Feedback Events . | . . . . . . . . . . . Feedback Blocked . | . . . . . . . . . . . Robot Schematics Acquired . | . . . . . . . . . . . Robots Built . | . . . . . . . . . . . Authchips . | . . . . . . . . . . . Time . | . . . . . . . . . . . Total Robot Build Rating . | . . . . . . . . . . . Part Schematics Acquired . | . . . . . . . . . . . Parts Built . | . . . . . . . . . . . Authchips . | . . . . . . . . . . . Time . | . . . . . . . . . . . Total Part Build Rating . | . . . . . . . . . . . Parts Repaired 2 | . . . 2 . . . . . . . Time 58 | . . . 58 . . . . . . . Parts Recycled . | . . . . . . . . . . . Recycled Matter . | . . . . . . . . . . . Retrieved Matter . | . . . . . . . . . . . Retrieved Components . | . . . . . . . . . . . Parts Scanalyzed . | . . . . . . . . . . . Part Schematics Acquired . | . . . . . . . . . . . Parts Damaged . | . . . . . . . . . . . Bothacking | -11 -10 -10 -8 -7 -7 -7 -7 -6 -6 -6 ------------ Run | Yrd Mat Sub Mat Fac Low Low Zio Pro Fac Ext Used RIF Installer . | . . . . . . . . . . . Robots Hacked 3 | . . . . . . . . . 3 . Non-combat . | . . . . . . . . . . . Combat 3 | . . . . . . . . . 3 . Robot Hacks Applied . | . . . . . . . . . . . Relay Couplers Released . | . . . . . . . . . . . Fabnet Peak Effective % 3 | . . . . . . . . 3 3 3 Autooverrided 3 | . . . . . . . . . 3 . Robots Rewired 7 | . . . . . . . . . . 7 Allies Hacked . | . . . . . . . . . . . Hacks Repelled . | . . . . . . . . . . . Allies | -11 -10 -10 -8 -7 -7 -7 -7 -6 -6 -6 -------- Run | Yrd Mat Sub Mat Fac Low Low Zio Pro Fac Ext Total Allies 16 | . . . . . . . . . 3 13 Largest Group 8 | . . . . . . . . . 1 8 Highest-Rated Group 219 | . . . . . . . . . 37 219 Highest-Rated Ally 37 | . . . . . . . . . 37 31 Total Orders 3 | . . . . . . . . . 2 1 EXPLORE 3 | . . . . . . . . . 2 1 Ally Attacks 61 | . . . . . . . . . 1 60 Total Damage 1019 | . . . . . . . . . 18 1001 Kills 5 | . . . . . . . . . . 5 Allies Corrupted 1 | . . . . . . . . . . 1 Allies Melted . | . . . . . . . . . . . Intel | -11 -10 -10 -8 -7 -7 -7 -7 -6 -6 -6 ------- Run | Yrd Mat Sub Mat Fac Low Low Zio Pro Fac Ext Active Infowar (turns) 6500 | 69 129 9 745 928 519 1089 280 725 1667 340 Sensors 3850 | . . . . 778 519 765 . . 1448 340 Terrain 114 | . 105 9 . . . . . . . . Seismic 6155 | 69 24 . 745 928 519 1089 280 725 1667 109 Jamming 934 | . . . . . . . . 683 251 . Robot Analysis Total 1 | . . . 1 . . . . . . . Derelict Logs Recovered 4 | . . 1 . . . 1 . 2 . . Drone Launches 3 | . . . . . . . . . 2 1 Drone Recoveries 3 | . . . . . . . . . 2 1 Exploration | -11 -10 -10 -8 -7 -7 -7 -7 -6 -6 -6 ------------- Run | Yrd Mat Sub Mat Fac Low Low Zio Pro Fac Ext Turns Passed 8841 | 145 129 1540 771 928 519 1089 280 725 1667 1048 Spaces Moved 4847 | 73 80 1112 372 467 309 650 160 359 842 423 Core 48 | 6 . . . . . . . . . 42 Treads 3628 | 67 80 202 114 467 309 650 160 359 842 378 Legs 3 | . . . . . . . . . . 3 Wheels 1168 | . . 910 258 . . . . . . . Hover . | . . . . . . . . . . . Flight . | . . . . . . . . . . . Fastest Speed 50 | 50 160 90 90 160 160 160 160 160 160 50 Average Speed 147 | 153 160 120 114 160 160 160 160 164 160 158 Slowest Speed 1850 | 160 160 160 240 160 160 160 160 240 160 1850 Overloaded Moves . | . . . . . . . . . . . Propulsion Burnouts . | . . . . . . . . . . . Robots Hopped . | . . . . . . . . . . . Potential Cave-ins 1 | . . . . . . . . . . 1 Cave-ins Triggered . | . . . . . . . . . . . Exploration Rate (%) 35 | 5 18 57 43 11 49 72 10 60 22 47 Regions Visited 10 Branch Regions 6 Pre-discovered Areas 2 | . . . 1 . . . . 1 . . Known Exits Taken 6 | . . . 1 1 1 1 . 1 1 . Unknown Exits Taken 4 | 1 1 1 . . . . 1 . . . Scrap Searched 8 | . . 4 . . 1 2 . 1 . . Spaces Dug 23 | . . . 1 12 . 3 . . 5 2 Terrain Destroyed 293 | . . 95 9 13 . 3 . . 64 109 Melee 21 | . . . 1 12 . 1 . . 5 2 Projectile 14 | . . 2 8 1 . 2 . . . 1 AOE 258 | . . 93 . . . . . . 59 106 Terrain Rammed . | . . . . . . . . . . . Walls Destroyed . | . . . . . . . . . . . Machines Disabled . | . . . . . . . . . . . Actions | -11 -10 -10 -8 -7 -7 -7 -7 -6 -6 -6 --------- Run | Yrd Mat Sub Mat Fac Low Low Zio Pro Fac Ext Total 6076 | 93 81 1229 657 588 334 675 170 465 1093 691 Wait 616 | . . 15 177 45 26 . . 83 178 92 Move 4837 | 72 79 1111 371 466 308 649 159 358 841 423 Hop . | . . . . . . . . . . . Pick Up 65 | 7 1 12 14 5 . 1 1 . 11 13 Fast Attach 33 | 7 . 3 8 2 . . 1 2 6 4 Attach 39 | . . 7 7 2 . 1 . 1 3 18 Detach 11 | . . 2 3 . . . . . 2 4 Swap 112 | 1 1 17 22 21 . 10 1 1 15 23 Drop 58 | 1 . 7 22 13 . 1 1 1 3 9 Fire 174 | 5 . 39 32 21 . 8 5 14 15 35 Melee 77 | . . 16 1 13 . 5 2 . 19 21 Ram . | . . . . . . . . . . . Kick . | . . . . . . . . . . . Crush 1 | . . . . . . . . . . 1 Escape Stasis . | . . . . . . . . . . . Rewire 48 | . . . . . . . . . . 48 Trap 5 | . . . . . . . . 5 . . Miscellaneous . | . . . . . . . . . . . Route ------- -11/Scrapyard -10/Materials (discovered 2 exits: [*Mat] / *Sub) -10/Subcaves (discovered 2 exits: *Mat x2) -8/Materials (discovered 2 exits: *Fac x2) -7/Factory (discovered 4 exits: Fac x2 / *Low x2) -7/Lower Caves -7/Lower Caves (discovered 2 exits: *Fac / *Zio) -7/Zion -6/Proximity Caves -6/Factory (discovered 3 exits: *Fac / [*Low] / *Ext) -6/Extension History --------- Turn | Location | Event 15 | -11/Scrapyard | Discovered new exit (range 14) 146 | -11/Scrapyard | Entered Materials 147 | -10/Materials | Met a group of wandering Federalists 247 | -10/Materials | Discovered new exit (range 15) 263 | -10/Materials | Discovered new exit (range 11) 275 | -10/Materials | Entered Subcaves 276 | -10/Subcaves | Continued accompanying wandering Federalists (4) 305 | -10/Subcaves | Build established: Mutant 331 | -10/Subcaves | Learned 2 Materials zone layouts 378 | -10/Subcaves | Core integrity fell below 50% 466 | -10/Subcaves | Shifting Twisted Machinery released Mak. Axe 495 | -10/Subcaves | Shifting Twisted Machinery released Flamer 961 | -10/Subcaves | Visited 4L-MR0's lab 976 | -10/Subcaves | Found Gun Armor 977 | -10/Subcaves | Attached Gun Armor, gained temporary slots: Weapon x2 1192 | -10/Subcaves | A swath of the cavern ceiling suddenly collapsed 1467 | -10/Subcaves | Core integrity fell below 20% 1505 | -10/Subcaves | Discovered new exit (range 15) 1617 | -10/Subcaves | A swath of the cavern ceiling suddenly collapsed 1795 | -10/Subcaves | Discovered new exit (range 15) 1799 | -10/Subcaves | Lost 3 parts (1n2w) 1815 | -10/Subcaves | Entered Materials 1815 | -8/Materials | Evolved 4 slots: Propulsion x1, Utility x2, Weapon x1 1816 | -8/Materials | Identified exit to Factory 2127 | -8/Materials | Repaired Sub. Shrapnel Launcher 2203 | -8/Materials | Repaired Seismic Detector 2284 | -8/Materials | Learned location of 1 exit from Lower Caves 2346 | -8/Materials | Learned Storage non-interactive machine intel 2396 | -8/Materials | Learned location of Extension (-6) 2438 | -8/Materials | Learned location of 2 exits from Factory 2462 | -8/Materials | Discovered exit to Factory (range 14) 2470 | -8/Materials | Learned Factory trap positions 2571 | -8/Materials | Learned Storage stockpile data 2586 | -8/Materials | Entered Factory 2586 | -7/Factory | Evolved 2 slots: Propulsion x1, Utility x1 2587 | -7/Factory | Identified exit to Lower Caves 2588 | -7/Factory | Identified exit to Factory 2589 | -7/Factory | Loaded intel: 83 trap records 3020 | -7/Factory | Build established: Scavenger-Skirmisher 3514 | -7/Factory | Entered Lower Caves 3515 | -7/Lower Caves | Identified exit to Lower Caves 3726 | -7/Lower Caves | Build established: Scavenger-Mutant 4033 | -7/Lower Caves | Entered another Lower Caves area 4123 | -7/Lower Caves | Discovered exit to Factory (range 9) 4383 | -7/Lower Caves | Encountered a Warlord checkpoint 4792 | -7/Lower Caves | Attracted the attention of an 0b10 checkpoint 5108 | -7/Lower Caves | Discovered new exit (range 10) 5121 | -7/Lower Caves | Identified exit to Zion 5122 | -7/Lower Caves | Entered Zion 5153 | -7/Zion | Given the Hacking Drone Bay 5161 | -7/Zion | Found Prototype Device 5234 | -7/Zion | Discovered new exit (range 11) 5300 | -7/Zion | Attacked by Zionites 5387 | -7/Zion | Lost 3 parts (2n1u) 5402 | -7/Zion | Entered Proximity Caves 5418 | -6/Proximity Caves | Learned location of 1 exit from Factory 5996 | -6/Proximity Caves | Attracted the attention of an 0b10 checkpoint 6031 | -6/Proximity Caves | Discovered exit to Factory (range 10) 6127 | -6/Proximity Caves | Entered Factory 6127 | -6/Factory | Evolved 2 slots: Propulsion x1, Utility x1 6128 | -6/Factory | Identified exit to Extension 6129 | -6/Factory | Identified exit to Factory 6131 | -6/Factory | Identified Hacking Drone Bay 6781 | -6/Factory | Discovered new exit (range 18) 6838 | -6/Factory | Local machine network offline 7159 | -6/Factory | Build established: Mutant 7674 | -6/Factory | Build established: Scavenger-Mutant 7794 | -6/Factory | Entered Extension 8430 | -6/Extension | Rescued a captive Derelict 8431 | -6/Extension | Rescued a captive Derelict 8523 | -6/Extension | Lost 4 allies 8529 | -6/Extension | Rescued a captive Derelict 8530 | -6/Extension | Rescued a captive Derelict 8583 | -6/Extension | Lost 4 parts (1n1u2w) 8591 | -6/Extension | Lost 4 allies 8626 | -6/Extension | Spotted B-75 Beast 8632 | -6/Extension | Rescued a captive Derelict 8633 | -6/Extension | Rescued a captive Derelict 8694 | -6/Extension | Core integrity fell below 50% 8700 | -6/Extension | Lost 4 allies 8780 | -6/Extension | Lost 14 parts (1p8n3u2w) 8804 | -6/Extension | Spotted B-75 Beast 8829 | -6/Extension | Core integrity fell below 20% 8842 | -6/Extension | Destroyed by B-75 Beast with Magnetic Acceleration Cannon Last Messages --------------- 08809_ U-05 Engineer lays Concrete. 08813_ U-05 Engineer builds a Wall. 08813_ Critical hit (Destroy). 08817_ U-05 Engineer lays Concrete. 08818_ U-05 Engineer builds a Wall. 08819_ Knocked back. 08822_ Ripper destroyed. 08822_ Imp. Heat Sink destroyed. 08822_ U-05 Engineer lays Concrete. 08825_ U-05 Engineer builds a Wall. 08825_ Knocked back. 08826_ Discarded Gun Armor. 08829_ U-05 Engineer builds a Wall. 08831_ U-05 Engineer destroyed. 08832_ Acquired 9 matter. 08833_ U-05 Engineer builds a Wall. 08834_ Knocked back. 08837_ U-05 Engineer builds a Wall. 08840_ Imp. Heat Sink destroyed. 08840_ Acquired 6 matter. Map ----- +----------------------------------------------------+ | % ##???????????????????????????????????????? | | % "#????????????????????????????????????????? | | " ##????????????????????????????????????????? | | # " #?????????????????????????????????????????? | | ###### #?????????????????????????????????????????? | | ?????" #?????????????????????????????????????????? | | ??##?# ###???????????????????????????????????????? | | ?## ## " ###?????????????????????????????????????? | | ?# ]%%" #?????????????????????????????????????? | | ??# %%%[ #??????????????????????????????????????? | | ?###%#=% #??????????????????????????????????????? | | ?# !!!!% #??????????????????????????????????????? | | ?#* [ ! ###???? ???????????????????????????????? | | ?###% # ###?? ???????????????????????????????? | | ??#"" #?# ???????????????????????????????? | | ??# #?# ???????????????????????????????? | | ??# ### #?# #??????????????????????????????? | | ??## % ## # ### ###????????????????????????????? | | ???# "" ""#????????????????????????????? | | ???# % " " #????????????????????????????? | | ???# #????????????????????????????? | | ???# #????????????????????????????? | | #### ####################?????????? | | B ????????? | | ????????? | | ! @ ????????? | | ==! % ????????? | | *% * RR k u R Ru u????????? | | #### !=| ####################?????????? | | ???# % #????????????????????????????? | | ???# % % #????????????????????????????? | | ???# #????????????????????????????? | | ???# #????????????????????????????? | | ???###### #"""#######????????????????????????????? | | ????????###??????????????????????????????????????? | | ?????????????????????????????????????????????????? | | | | | | | | | | | | | | | | | | | | | | | | | | | | | +----------------------------------------------------+ Best States ------------- Heat Dissipation 84 Energy Generation 18 Energy Capacity 290 Matter Stores 300 Matter Capacity 300 Sight Range 16 Robot Scan Range 16 Terrain Scan Range 16 Terrain Scan Density 10 Jamming Range 12 Armor Coverage 435 Melee Speed Boost 20 Evasion (%) 50 Melee Accuracy 5 Recoil Reduction 5 Offensive Hacking 10 Item Schematics ----------------- None Robot Schematics ------------------ None Fabricated ------------ Nothing Repaired ---------- Sub. Shrapnel Launcher | 65% | -8/Materials Seismic Detector | 75% | -8/Materials Alien Tech Used ----------------- None Achievements -------------- None Challenges ------------ None Game ------ Seed SigixDamperPod Manual? 0 Play Time 01:28:51 Cumulative 96.5 hours Start 2025.07.22 @ 21:11:43 End 2025.07.23 @ 03:59:02 Sessions 6 Manual Loads 0 Difficulty Rogue Special Mode None Game No. 108 Rogue 108 Adventurer 0 Explorer 0 Win Type - Total 0 Types 0/0/0/0/0/0/0/0/0/0 Lore% 52 Gallery% 42 Achievement% 33 Wizard Run 0 Options --------- Layout 1 ASCII 0 Keyboard 0 Movement Mouse Keybinds 0 Fullscreen 2 Font 48/Smallcaps Map View 50x35 Zoom Use 0% Tactical HUD 1 Map Filters NONE Filters NONE Steam 0 RUN: a0df44b4-ed6f-4231-945e-23418e3ad496